bitfinex/quotes_ETHUSD_20230110
["timestamp","ask_amount","ask_price","bid_price","bid_amount"]
[1673337391921,12.45684333,1323.6,1323.4,28.41237491]
[1673337392142,0.05,1323.5,1323.4,28.41237491]
[1673337392384,12.45684333,1323.6,1323.4,30.28732676]
[1673337392558,12.45684333,1323.6,1323.4,31.22531199]
[1673337392773,12.45684333,1323.6,1323.4,28.41237491]
[1673337393818,10.76203491,1323.6,1323.4,32.24144935]
[1673337394063,10.76203491,1323.6,1323.4,31.22531199]
[1673337394273,10.76203491,1323.6,1323.4,28.41237491]
[1673337395081,1.76273491,1323.6,1323.4,32.24144935]
[1673337395332,1.76273491,1323.6,1323.5,7.41888821]
[1673337395333,0.5668,1323.6,1323.5,7.41888821]
[1673337395522,1.53317876,1323.7,1323.6,23.79029418]
[1673337395710,1.53317876,1323.7,1323.6,25.55729418]
[1673337398147,0.4032813,1323.7,1323.6,25.55729418]
[1673337398358,0.4532813,1323.7,1323.6,25.55729418]
[1673337398567,0.4532813,1323.7,1323.6,29.52696714]
[1673337400374,0.4032813,1323.7,1323.6,29.52696714]
[1673337403083,1.12989746,1323.8,1323.6,29.52696714]
[1673337407105,1.12989746,1323.8,1323.6,29.52341639]
[1673337413426,1.12989746,1323.8,1323.6,25.55374343]
[1673337415702,1.12989746,1323.8,1323.6,17.99859343]
[1673337420463,2.82470588,1323.8,1323.6,17.99859343]
[1673337423211,0.05,1323.7,1323.6,17.99859343]
[1673337423375,2.82470588,1323.8,1323.6,17.99859343]
[1673337423987,1.12989746,1323.7,1323.6,17.99859343]
[1673337424842,1.12989746,1323.7,1323.6,10.44344343]
[1673337425839,1.12733819,1323.7,1323.6,10.44344343]
[1673337426032,1.12733819,1323.7,1323.6,25.55374343]
[1673337427805,1.12933819,1323.7,1323.6,25.55174343]
[1673337428049,1.12733819,1323.7,1323.6,25.55374343]
[1673337428260,2.82214661,1323.7,1323.6,25.55374343]
[1673337429146,2.82214661,1323.7,1323.6,23.85274343]
[1673337429358,3.95477004,1323.7,1323.6,1.18729343]
[1673337429610,3.32752713,1323.7,1323.6,1.12129343]
[1673337430350,6.15333775,1323.7,1323.6,1.12129343]
[1673337430563,3.39352713,1323.7,1323.6,1.12129343]
[1673337430845,3.32752713,1323.7,1323.6,1.12129343]
[1673337432448,2.25996162,1323.7,1323.6,1.12129343]
[1673337433282,3.95554474,1323.7,1323.6,1.12129343]
[1673337434378,2.25996162,1323.7,1323.6,1.12129343]
[1673337436585,3.95540193,1323.7,1323.6,1.12129343]
[1673337437897,27.74951224,1323.7,1323.6,1.12129343]
[1673337438109,33.48711483,1323.7,1323.6,1.12129343]
[1673337438402,35.19011483,1323.7,1323.6,1.12129343]
[1673337438684,27.63553483,1323.7,1323.6,1.12129343]
[1673337438876,23.80719026,1323.7,1323.6,1.12129343]
[1673337439086,27.6344431,1323.7,1323.6,1.12129343]
[1673337439306,40.11847731,1323.7,1323.6,1.12129343]
[1673337440151,36.72767312,1323.7,1323.6,1.12129343]
[1673337440366,39.55094772,1323.7,1323.6,1.12129343]
[1673337441159,36.72767312,1323.7,1323.6,1.12129343]
[1673337441792,39.55094733,1323.7,1323.6,1.12129343]
[1673337443470,39.55011238,1323.7,1323.6,1.12129343]
[1673337443682,39.55011278,1323.7,1323.6,1.12129343]
[1673337445806,40.11847731,1323.7,1323.6,1.12129343]
[1673337446046,36.72767312,1323.7,1323.6,1.12129343]
[1673337446258,36.95767312,1323.7,1323.6,1.12129343]
[1673337446779,40.34847731,1323.7,1323.6,1.12129343]
[1673337447003,36.95767312,1323.7,1323.6,1.12129343]
[1673337447306,40.34847731,1323.7,1323.6,1.12129343]
[1673337447668,36.95767312,1323.7,1323.6,1.12129343]
[1673337448137,39.77814822,1323.7,1323.6,1.12129343]
[1673337448359,36.95767312,1323.7,1323.6,1.12129343]
[1673337448735,39.77812978,1323.7,1323.6,1.12129343]
[1673337448951,36.95767312,1323.7,1323.6,1.12129343]
[1673337449406,36.95767312,1323.7,1323.6,1.11795636]
[1673337450427,33.13042028,1323.7,1323.6,1.11795636]
[1673337450776,28.39601936,1323.7,1323.6,1.11795636]
[1673337450958,39.77674728,1323.7,1323.6,1.11795636]
[1673337451719,34.47845751,1323.7,1323.6,1.11795636]
[1673337452525,30.65230959,1323.7,1323.6,1.11795636]
[1673337452884,27.83213051,1323.7,1323.6,1.11795636]
[1673337453097,27.83213051,1323.7,1323.6,1.08012385]
[1673337453402,30.65230959,1323.7,1323.6,1.08012385]
[1673337453765,27.83213051,1323.7,1323.6,1.08012385]
[1673337453979,30.65230959,1323.7,1323.6,1.08012385]
[1673337454189,38.20688959,1323.7,1323.6,1.08012385]
[1673337454400,30.65230959,1323.7,1323.6,1.08012385]
[1673337455298,23.09772959,1323.7,1323.6,1.08012385]
[1673337456881,30.42230959,1323.7,1323.6,1.08012385]
[1673337458721,29.85550959,1323.7,1323.6,1.08012385]
[1673337459190,28.15250959,1323.7,1323.6,1.08012385]
[1673337461025,20.59792959,1323.7,1323.6,1.08012385]
[1673337461139,10.22317051,1323.7,1323.6,1.04229134]
[1673337461354,7.81318327,1323.7,1323.6,1.04229134]
[1673337461595,5.55689304,1323.7,1323.6,16.15259134]
[1673337461819,7.81318327,1323.7,1323.6,16.21859134]
[1673337461985,5.55689304,1323.7,1323.6,16.21859134]
[1673337462440,7.81318327,1323.7,1323.6,16.21859134]
[1673337463048,5.55689304,1323.7,1323.6,8.66344134]
[1673337464086,7.81318327,1323.7,1323.6,1.10829134]
[1673337464310,7.81318327,1323.7,1323.6,1.04229134]
[1673337465657,15.36776327,1323.7,1323.6,1.04229134]
[1673337465896,19.9022025,1323.7,1323.6,1.04229134]
[1673337466344,27.4567825,1323.7,1323.6,1.04229134]
[1673337466652,35.0113625,1323.7,1323.6,1.04229134]
[1673337469344,12.3476225,1323.7,1323.6,1.04229134]
[1673337473268,12.3491082,1323.7,1323.6,1.04229134]
[1673337473653,19.9036882,1323.7,1323.6,1.04229134]
[1673337473981,19.90367289,1323.7,1323.6,1.04229134]
[1673337474193,12.34909289,1323.7,1323.6,1.04229134]
[1673337474419,25.7635501,1323.7,1323.6,1.04229134]
[1673337474635,36.13830918,1323.7,1323.6,1.04229134]
[1673337475805,33.88201895,1323.7,1323.6,1.04229134]
[1673337475996,36.14154726,1323.7,1323.6,1.04229134]
[1673337476619,33.88201895,1323.7,1323.6,1.04229134]
[1673337478123,32.34389528,1323.7,1323.6,1.04229134]
[1673337479077,32.34389528,1323.7,1323.6,1.00445883]
[1673337480175,32.34389528,1323.7,1323.6,0.96662632]
[1673337480840,17.23473528,1323.7,1323.6,0.96662632]
[1673337481186,9.68015528,1323.7,1323.6,0.96662632]
[1673337482162,2.32553697,1323.7,1323.6,0.92879381]
[1673337482405,2.25953697,1323.7,1323.6,0.92879381]
[1673337482970,5.07971605,1323.7,1323.6,0.92879381]
[1673337483272,2.32553697,1323.7,1323.6,0.92879381]
[1673337483422,20.18887605,1323.7,1323.6,0.92879381]
[1673337483633,20.25487605,1323.7,1323.6,0.92879381]
[1673337484104,27.80945605,1323.7,1323.6,0.92879381]
[1673337488180,25.54991908,1323.7,1323.6,0.92879381]
[1673337488514,30.40419041,1323.7,1323.6,0.92879381]
[1673337489518,30.410289,1323.7,1323.6,0.92879381]
[1673337489770,27.58401133,1323.7,1323.6,0.92879381]
[1673337489954,31.38167197,1323.7,1323.6,0.92879381]
[1673337490180,39.39798332,1323.7,1323.6,0.92879381]
[1673337492043,40.15236985,1323.7,1323.6,0.8909613]
[1673337492253,36.32513994,1323.7,1323.6,0.8909613]
[1673337492935,32.93433575,1323.7,1323.6,0.8909613]
[1673337495764,35.76187373,1323.7,1323.6,0.8909613]
[1673337495969,32.93433575,1323.7,1323.6,0.8909613]
[1673337496558,35.7619386,1323.7,1323.6,0.8909613]
[1673337496989,32.93433575,1323.7,1323.6,0.8909613]
[1673337497235,32.93433575,1323.7,1323.6,0.85312879]
[1673337497455,35.76187508,1323.7,1323.6,0.85312879]
[1673337497628,41.85862918,1323.7,1323.6,0.85312879]
[1673337498684,38.03213994,1323.7,1323.6,0.85312879]
[1673337498929,41.85827412,1323.7,1323.6,0.85312879]
[1673337499140,38.03213994,1323.7,1323.6,0.85312879]
[1673337499561,41.8586483,1323.7,1323.6,0.85312879]
[1673337503129,41.8586483,1323.7,1323.6,0.81529628]
[1673337504160,41.8586483,1323.7,1323.6,0.77746377]
[1673337505159,41.8586483,1323.7,1323.6,0.73963126]
[1673337506269,41.8586483,1323.7,1323.6,0.70179875]
[1673337507101,41.8586483,1323.7,1323.6,0.66396624]
[1673337508166,41.2918483,1323.7,1323.6,0.66396624]
[1673337508598,40.53598452,1323.7,1323.6,0.66396624]
[1673337509125,40.53598452,1323.7,1323.6,0.62613373]
[1673337510473,40.53598452,1323.7,1323.4,0.07844702]
[1673337510682,3.95685521,1323.5,1323.4,0.07844702]
[1673337510915,7.75451585,1323.5,1323.4,0.07844702]
[1673337511118,7.82051585,1323.5,1323.4,0.07844702]
[1673337511388,15.37623585,1323.5,1323.4,0.07844702]
[1673337512046,22.93195585,1323.5,1323.4,0.07844702]
[1673337512290,22.93195585,1323.5,1323.4,0.04060879]
[1673337513038,30.48767585,1323.5,1323.4,0.00277056]
[1673337517192,22.93195585,1323.5,1323.4,0.00277056]
[1673337517559,15.37623585,1323.5,1323.4,0.00277056]
[1673337517790,10.32051585,1323.5,1323.4,0.00277056]
[1673337517933,17.87623585,1323.5,1323.4,0.00277056]
[1673337518563,17.92623585,1323.5,1323.4,0.00277056]
[1673337518947,10.37051585,1323.5,1323.4,0.00277056]
[1673337519257,7.87051585,1323.5,1323.4,0.00277056]
[1673337519416,17.92623585,1323.5,1323.4,0.00277056]
[1673337519950,15.42623585,1323.5,1323.4,0.00277056]
[1673337522196,7.87051585,1323.5,1323.4,0.00277056]
[1673337522392,10.37051585,1323.5,1323.4,0.00277056]
[1673337522599,10.32051585,1323.5,1323.4,0.00277056]
[1673337522814,11.50104592,1323.5,1323.4,0.00277056]
[1673337523004,16.23044076,1323.5,1323.4,0.00277056]
[1673337523550,25.48300798,1323.5,1323.4,0.00277056]
[1673337523961,22.98300798,1323.5,1323.4,0.00277056]
[1673337524812,22.93300798,1323.5,1323.4,0.00277056]
[1673337525257,30.48872798,1323.5,1323.4,0.00277056]
[1673337525577,15.37728798,1323.5,1323.4,0.00277056]
[1673337525895,22.93300798,1323.5,1323.4,0.00277056]
[1673337526436,30.48872798,1323.5,1323.4,0.00277056]
[1673337526799,28.79188076,1323.5,1323.4,0.00277056]
[1673337527331,32.70924735,1323.5,1323.4,0.00277056]
[1673337528177,25.15352735,1323.5,1323.4,0.00277056]
[1673337528617,35.53557251,1323.5,1323.4,0.00277056]
[1673337533328,33.27451239,1323.5,1323.4,0.00277056]
[1673337533560,31.62081147,1323.5,1323.4,0.00277056]
[1673337536520,29.3571458,1323.5,1323.4,0.00277056]
[1673337537823,2.50059598,1323.4,1323.3,0.09674125]
[1673337538075,19.0734356,1323.4,1323.3,0.09674125]
[1673337538292,17.44218148,1323.4,1323.3,0.09674125]
[1673337538917,19.13933397,1323.4,1323.3,0.09674125]
[1673337541348,19.18933397,1323.4,1323.3,0.09674125]
[1673337543307,19.13933397,1323.4,1323.3,0.09674125]
[1673337543648,26.74562397,1323.4,1323.3,0.09674125]
[1673337543879,24.48261847,1323.4,1323.3,0.09674125]
[1673337544390,24.48261847,1323.4,1323.3,12.09674125]
[1673337544597,24.48261847,1323.4,1323.3,12.16274125]
[1673337545133,24.48261847,1323.4,1323.3,0.16274125]
[1673337545281,16.92632847,1323.4,1323.3,0.09674125]
[1673337545909,19.18933397,1323.4,1323.3,0.09674125]
[1673337546811,19.18933397,1323.4,1323.3,10.09674125]
[1673337547021,19.18933397,1323.4,1323.3,10.16274125]
[1673337547389,16.87632847,1323.4,1323.3,0.16274125]
[1673337547599,11.58304397,1323.4,1323.3,0.09674125]
[1673337547825,9.32003847,1323.4,1323.3,0.09674125]
[1673337548021,1.76374847,1323.4,1323.3,0.09674125]
[1673337548381,10.38561365,1323.4,1323.3,0.09674125]
[1673337548556,2.89532365,1323.4,1323.3,1.97194804]
[1673337548768,0.00059598,1323.4,1323.3,30.97194804]
[1673337548978,0.00059598,1323.4,1323.3,31.03794804]
[1673337549205,2.8294716,1323.4,1323.3,31.03794804]
[1673337549413,2.82938811,1323.4,1323.3,31.0379291]
[1673337549851,1.69787126,1323.4,1323.3,29.16274125]
[1673337550224,1.69787126,1323.4,1323.3,0.16274125]
[1673337550439,1.69787126,1323.4,1323.3,0.09674125]
[1673337551300,2.82940868,1323.4,1323.3,0.09674125]
[1673337551505,2.82940868,1323.4,1323.3,1.97193996]
[1673337551733,2.82941128,1323.4,1323.3,0.09674125]
[1673337552145,2.82941128,1323.4,1323.3,13.971952]
[1673337552354,2.82941128,1323.4,1323.3,12.16274125]
[1673337552780,2.82941128,1323.4,1323.3,0.16274125]
[1673337552986,2.82941128,1323.4,1323.3,0.09674125]
[1673337553232,2.82941128,1323.4,1323.3,12.09674125]
[1673337553406,2.82941128,1323.4,1323.3,0.16274125]
[1673337553772,2.82941128,1323.4,1323.3,0.09674125]
[1673337553945,1.69787126,1323.4,1323.3,0.09674125]
[1673337554143,2.82942104,1323.4,1323.3,13.97195161]
[1673337554356,2.82942104,1323.4,1323.3,14.03795161]
[1673337554891,1.69787126,1323.4,1323.3,12.16274125]
[1673337555936,1.69787126,1323.4,1323.3,0.16274125]
[1673337556145,1.69787126,1323.4,1323.3,0.09674125]
[1673337556386,1.69787126,1323.4,1323.3,12.09674125]
[1673337556638,1.69787126,1323.4,1323.3,12.16274125]
[1673337557441,9.25416126,1323.4,1323.3,12.16274125]
[1673337557768,11.58316676,1323.4,1323.3,12.16274125]
[1673337558077,26.74574676,1323.4,1323.3,12.16274125]
[1673337558814,19.18945676,1323.4,1323.3,12.16274125]
[1673337559970,4.07687676,1323.4,1323.3,12.16274125]
[1673337560163,4.01087676,1323.4,1323.3,12.16274125]
[1673337560384,4.01087676,1323.4,1323.3,12.15915858]
[1673337562601,9.30416126,1323.4,1323.3,14.42362596]
[1673337562847,2.94563135,1323.4,1323.3,18.01083628]
[1673337562971,1.18234449,1323.4,1323.3,18.01083628]
[1673337563334,1.18233031,1323.4,1323.3,25.56769628]
[1673337563526,1.18233925,1323.4,1323.3,28.38044425]
[1673337563740,1.18234333,1323.4,1323.3,51.38044425]
[1673337563914,4.01169031,1323.4,1323.3,63.68141628]
[1673337564127,1.1323437,1323.4,1323.3,62.49416071]
[1673337564334,2.26408583,1323.4,1323.3,62.49416071]
[1673337564580,1.1323437,1323.4,1323.3,47.38044071]
[1673337564828,1.1323437,1323.4,1323.3,54.93730071]
[1673337564829,2.26411278,1323.4,1323.3,54.93730071]
[1673337565111,2.26405433,1323.4,1323.3,69.49416071]
[1673337565328,2.26404648,1323.4,1323.3,54.38044071]
[1673337565647,1.1323437,1323.4,1323.3,61.93730071]
[1673337565817,1.1323437,1323.4,1323.3,43.38044071]
[1673337566029,2.2640266,1323.4,1323.3,50.93730071]
[1673337566246,1.1323437,1323.4,1323.3,43.38044071]
[1673337566587,1.1323437,1323.4,1323.3,43.82358071]
[1673337566837,1.1323437,1323.4,1323.3,58.93730071]
[1673337567150,2.26392788,1323.4,1323.3,66.49416071]
[1673337567362,1.1323437,1323.4,1323.3,58.93730071]
[1673337567769,2.26392451,1323.4,1323.3,58.93730071]
[1673337567978,1.1323437,1323.4,1323.3,58.93730071]
[1673337568311,2.31394067,1323.4,1323.3,51.93730071]
[1673337568478,1.1823437,1323.4,1323.3,59.49416071]
[1673337568928,2.31391029,1323.4,1323.3,51.93730071]
[1673337569161,1.1823437,1323.4,1323.3,56.0687976]
[1673337569329,1.1823437,1323.4,1323.3,54.93730071]
[1673337569784,1.1823437,1323.4,1323.3,56.0687976]
[1673337569993,1.1823437,1323.4,1323.3,62.0687976]
[1673337570368,1.1323437,1323.4,1323.3,60.93730071]
[1673337570586,1.1323437,1323.4,1323.3,58.93730071]
[1673337572274,1.1323437,1323.4,1323.3,51.38044071]
[1673337573011,1.1323437,1323.4,1323.3,55.20951515]
[1673337573221,3.39436776,1323.4,1323.3,55.20951515]
[1673337573416,2.26334021,1323.4,1323.3,56.34101204]
[1673337573625,2.26334021,1323.4,1323.3,55.20951515]
[1673337573890,2.26334021,1323.4,1323.3,51.38044071]
[1673337574056,2.26334021,1323.4,1323.3,58.93730071]
[1673337574408,2.26334021,1323.4,1323.3,55.20951515]
[1673337574614,2.31334021,1323.4,1323.3,51.38044071]
[1673337574989,2.31334021,1323.4,1323.3,58.93730071]
[1673337575301,2.31334021,1323.4,1323.3,55.20951515]
[1673337575876,2.31334021,1323.4,1323.3,63.89787204]
[1673337576299,2.31334021,1323.4,1323.3,56.34101204]
[1673337576455,2.26334021,1323.4,1323.3,63.89787204]
[1673337576670,2.26334021,1323.4,1323.3,58.93730071]
[1673337577091,2.26334021,1323.4,1323.3,62.76637515]
[1673337577515,2.26334021,1323.4,1323.3,71.45473204]
[1673337577883,2.26334021,1323.4,1323.3,77.85635129]
[1673337579631,2.26334021,1323.4,1323.3,76.15335129]
[1673337579834,2.26090509,1323.4,1323.3,76.15335129]
[1673337580049,2.26090509,1323.4,1323.3,74.45473204]
[1673337581027,2.26090509,1323.4,1323.3,76.15335129]
[1673337581608,2.26090509,1323.4,1323.3,74.45473204]
[1673337582789,2.26090509,1323.4,1323.3,76.15335129]
[1673337583000,2.26090509,1323.4,1323.3,74.45473204]
[1673337584417,2.26090509,1323.4,1323.3,76.15335129]
[1673337584783,2.26090509,1323.4,1323.3,74.45473204]
[1673337587680,2.26090509,1323.4,1323.3,76.15335129]
[1673337587996,2.26090509,1323.4,1323.3,79.95101193]
[1673337589538,2.26090509,1323.4,1323.3,78.25239268]
[1673337591730,2.26090509,1323.4,1323.3,79.95101193]
[1673337592409,2.26090509,1323.4,1323.3,78.25239268]
[1673337593099,2.31090509,1323.4,1323.3,78.25239268]
[1673337593308,2.31090509,1323.4,1323.3,74.42331824]
[1673337593635,2.31090509,1323.4,1323.3,78.25239268]
[1673337595136,2.26090509,1323.4,1323.3,78.25239268]
[1673337598344,2.26090509,1323.4,1323.3,74.42331824]
[1673337599028,2.26090509,1323.4,1323.3,78.25239268]
[1673337599654,2.26090509,1323.4,1323.3,79.95101193]
[1673337600045,2.26090509,1323.4,1323.3,78.25239268]
[1673337600256,2.26090509,1323.4,1323.3,78.25163848]
[1673337600716,2.25719465,1323.4,1323.3,78.25163848]
[1673337600924,1.24618157,1323.6,1323.5,22.66716]
[1673337601080,1.18018157,1323.6,1323.5,34.06487143]
[1673337601295,9.7202,1323.7,1323.5,34.06487143]
[1673337602074,9.7202,1323.7,1323.5,28.54981645]
[1673337602234,9.7202,1323.7,1323.5,32.36325031]
[1673337602452,9.7202,1323.7,1323.5,28.54981645]
[1673337602659,9.7202,1323.7,1323.5,29.54659386]
[1673337602911,9.7202,1323.7,1323.5,25.73316]
[1673337603450,9.6702,1323.7,1323.5,29.54659386]
[1673337603812,9.6702,1323.7,1323.5,25.73316]
[1673337604067,9.6702,1323.7,1323.5,28.77791645]
[1673337605441,9.6702,1323.7,1323.5,22.73316]
[1673337605977,9.6702,1323.7,1323.5,22.73283]
[1673337606291,3.73026575,1323.6,1323.5,22.73283]
[1673337606446,5.44526575,1323.6,1323.5,0.066]
[1673337606657,5.99002807,1323.6,1323.4,2.99940454]
[1673337607652,1.308,1323.5,1323.4,2.99940454]
[1673337608551,3.5899,1323.5,1323.4,2.99940454]
[1673337608762,6.0899,1323.5,1323.4,2.99940454]
[1673337608988,11.21162,1323.5,1323.4,2.99940454]
[1673337609223,14.43627981,1323.5,1323.4,2.99940454]
[1673337609627,21.94199981,1323.5,1323.4,2.99940454]
[1673337611191,10.78543266,1323.5,1323.4,2.99940454]
[1673337611545,25.89687266,1323.5,1323.4,2.99940454]
[1673337611733,25.89687266,1323.5,1323.4,2.96156631]
[1673337611947,23.63651832,1323.5,1323.4,2.96156631]
[1673337612140,24.76587858,1323.5,1323.4,2.96156631]
[1673337612346,9.65443858,1323.5,1323.4,2.96156631]
[1673337612600,9.65443858,1323.5,1323.4,2.92372808]
[1673337613702,17.21015858,1323.5,1323.4,2.92372808]
[1673337613914,9.65443858,1323.5,1323.4,2.92372808]
[1673337614471,9.65443858,1323.5,1323.4,2.88588985]
[1673337614855,6.42977877,1323.5,1323.4,10.44217985]
[1673337615068,6.42977877,1323.5,1323.4,10.50817985]
[1673337615332,4.73526026,1323.5,1323.4,10.47034162]
[1673337615489,4.66926026,1323.5,1323.4,10.47034162]
[1673337615852,4.66926026,1323.5,1323.4,2.91405162]
[1673337616028,6.13067638,1323.5,1323.4,2.84805162]
[1673337616372,4.73526026,1323.5,1323.4,2.83842833]
[1673337616583,4.10236026,1323.5,1323.4,2.83842833]
[1673337617428,4.10236026,1323.5,1323.4,2.80961927]
[1673337617603,11.65808026,1323.5,1323.4,2.80961927]
[1673337617798,27.96757851,1323.5,1323.4,2.80961927]
[1673337618012,25.01532145,1323.5,1323.4,2.80961927]
[1673337618269,32.57104145,1323.5,1323.4,2.77178104]
[1673337618794,27.27567579,1323.5,1323.4,2.77178104]
[1673337618959,25.01532145,1323.5,1323.4,2.77178104]
[1673337619577,25.01532145,1323.5,1323.4,2.73394281]
[1673337620277,26.14406704,1323.5,1323.4,2.69610458]
[1673337620482,26.14406747,1323.5,1323.4,2.69610458]
[1673337620853,32.57104145,1323.5,1323.4,2.69610458]
[1673337621273,32.57104145,1323.5,1323.4,2.65826635]
[1673337622370,32.57104145,1323.5,1323.4,2.62042812]
[1673337622610,32.00414145,1323.5,1323.4,2.62042812]
[1673337622753,35.9623202,1323.5,1323.4,2.62042812]
[1673337622960,43.77412794,1323.5,1323.4,2.62042812]
[1673337623165,45.21922748,1323.5,1323.4,2.62042812]
[1673337623419,45.21922748,1323.5,1323.4,2.58258989]
[1673337624210,42.39378456,1323.5,1323.4,2.58258989]
[1673337624527,42.39378456,1323.5,1323.4,2.54475166]
[1673337625270,42.39378456,1323.5,1323.4,2.50691343]
[1673337626045,44.08546458,1323.5,1323.4,2.50691343]
[1673337626260,44.08546547,1323.5,1323.4,2.46908559]
[1673337627242,44.08546547,1323.5,1323.4,2.43125045]
[1673337627610,43.32960169,1323.5,1323.4,2.43125045]
[1673337628299,43.32960169,1323.5,1323.4,2.39341222]
[1673337629449,43.32960169,1323.5,1323.4,2.35557399]
[1673337630293,43.32960169,1323.5,1323.4,2.31773576]
[1673337631427,41.07286449,1323.5,1323.4,2.27989753]
[1673337631621,11.02871765,1323.5,1323.4,2.27989753]
[1673337631842,20.96979471,1323.5,1323.4,2.27989753]
[1673337632083,19.2781138,1323.5,1323.4,2.27989753]
[1673337632387,29.09241471,1323.5,1323.4,2.27989753]
[1673337632566,27.4007338,1323.5,1323.4,2.27989753]
[1673337632990,29.09241471,1323.5,1323.4,2.27989753]
[1673337633248,33.65085409,1323.5,1323.4,2.27989753]
[1673337634073,27.26751471,1323.5,1323.4,2.27989753]
[1673337634445,12.20607471,1323.5,1323.4,2.27989753]
[1673337634660,2.9586738,1323.5,1323.4,2.27989753]
[1673337634899,2.8926738,1323.5,1323.4,2.27989753]
[1673337635118,18.0041138,1323.5,1323.4,2.27989753]
[1673337635309,18.0701138,1323.5,1323.4,2.27989753]
[1673337635520,22.50772418,1323.5,1323.4,2.27989753]
[1673337636066,24.19940509,1323.5,1323.4,2.27989753]
[1673337636234,31.75512509,1323.5,1323.4,2.27989753]
[1673337636700,31.70512509,1323.5,1323.4,2.27989753]
[1673337637224,30.57745129,1323.5,1323.4,2.27989753]
[1673337637384,23.02173129,1323.5,1323.4,2.27989753]
[1673337637810,24.1497524,1323.5,1323.4,2.27989753]
[1673337639279,23.02173129,1323.5,1323.4,2.2420593]
[1673337640179,30.57745129,1323.5,1323.4,2.2420593]
[1673337640479,32.83418849,1323.5,1323.4,2.20422107]
[1673337641383,32.83418849,1323.5,1323.4,2.16638284]
[1673337641793,31.14250758,1323.5,1323.4,2.16638284]
[1673337642303,31.14250758,1323.5,1323.4,2.12854461]
[1673337643008,33.9679505,1323.5,1323.4,2.12854461]
[1673337643215,31.7112133,1323.5,1323.4,2.12854461]
[1673337643421,31.7112133,1323.5,1323.4,2.09070638]
[1673337644302,31.7112133,1323.5,1323.4,2.05286815]
[1673337644918,33.96914883,1323.5,1323.4,2.05286815]
[1673337645313,31.7112133,1323.5,1323.4,2.01502992]
[1673337646297,28.88577038,1323.5,1323.4,1.97719169]
[1673337646705,31.71142059,1323.5,1323.4,1.97719169]
[1673337647461,28.88577038,1323.5,1323.4,1.93935346]
[1673337647835,31.71178435,1323.5,1323.4,1.93935346]
[1673337648087,28.88577038,1323.5,1323.4,1.93935346]
[1673337648404,31.71177822,1323.5,1323.4,1.90151523]
[1673337649232,31.71177822,1323.5,1323.4,1.863677]
[1673337649839,35.50943886,1323.5,1323.4,1.863677]
[1673337650070,35.50934107,1323.5,1323.4,1.863677]
[1673337650268,35.50934107,1323.5,1323.4,1.82583877]
[1673337651442,35.50934107,1323.5,1323.4,1.78800054]
[1673337651672,37.77019589,1323.5,1323.4,1.78800054]
[1673337651827,35.50934107,1323.5,1323.4,1.78800054]
[1673337652293,35.50934107,1323.5,1323.4,1.75016231]
[1673337653298,35.50934107,1323.5,1323.4,1.71232408]
[1673337654349,35.50934107,1323.5,1323.4,1.67448585]
[1673337655460,32.68343102,1323.5,1323.4,1.63664762]
[1673337656275,32.68343102,1323.5,1323.4,1.59880939]
[1673337657359,36.07396253,1323.5,1323.4,1.56097116]
[1673337657961,32.68343102,1323.5,1323.4,1.56097116]
[1673337658361,36.07396253,1323.5,1323.4,1.52313293]
[1673337658997,32.68343102,1323.5,1323.4,1.52313293]
[1673337659216,36.07396253,1323.5,1323.4,1.52313293]
[1673337659434,36.07396253,1323.5,1323.4,1.4852947]
[1673337660250,36.07396253,1323.5,1323.4,1.44745647]
[1673337661449,36.07396253,1323.5,1323.4,1.40961824]
[1673337662918,32.68343102,1323.5,1323.4,1.40961824]
[1673337663132,36.07396253,1323.5,1323.4,1.40961824]
[1673337663745,25.12771102,1323.5,1323.4,1.40961824]
[1673337664349,6.21861038,1323.5,1323.4,1.40961824]
[1673337664548,4.60895148,1323.5,1323.4,1.40961824]
[1673337664755,19.65439148,1323.5,1323.4,1.40961824]
[1673337664967,19.72039148,1323.5,1323.4,1.40961824]
[1673337665177,24.44816,1323.5,1323.4,1.40961824]
[1673337665453,9.33672,1323.5,1323.4,1.40961824]
[1673337666019,16.89244,1323.5,1323.4,1.40961824]
[1673337666226,12.84521934,1323.5,1323.4,1.40961824]
[1673337666441,15.67334603,1323.5,1323.4,1.40961824]
[1673337666647,8.11762603,1323.5,1323.4,1.40961824]
[1673337666905,23.22906603,1323.5,1323.4,1.40961824]
[1673337667221,27.95665934,1323.5,1323.4,1.40961824]
[1673337667431,27.95665934,1323.5,1323.4,1.37178001]
[1673337667648,20.40093934,1323.5,1323.4,1.37178001]
[1673337668230,6.40261837,1323.5,1323.4,1.37178001]
[1673337668443,2.89411903,1323.5,1323.4,1.33394178]
[1673337668670,2.82811903,1323.5,1323.4,1.33394178]
[1673337669345,2.82811903,1323.5,1323.4,1.32391205]
[1673337669520,10.38383903,1323.5,1323.4,1.32391205]
[1673337669732,25.56127903,1323.5,1323.4,1.32391205]
[1673337669927,18.00555903,1323.5,1323.4,1.32391205]
[1673337670390,21.62537027,1323.5,1323.4,1.31388225]
[1673337670557,29.18109027,1323.5,1323.4,1.31388225]
[1673337670769,21.62537027,1323.5,1323.4,1.31388225]
[1673337671014,18.00555903,1323.5,1323.4,1.31388225]
[1673337671519,25.56127903,1323.5,1323.4,1.27604402]
[1673337672461,25.56127903,1323.5,1323.4,1.23820579]
[1673337672876,2.89411903,1323.5,1323.4,1.23820579]
[1673337673136,2.82811903,1323.5,1323.4,1.23820579]
[1673337673315,10.38383903,1323.5,1323.4,1.20036756]
[1673337673525,25.56127903,1323.5,1323.4,1.20036756]
[1673337673952,10.44983903,1323.5,1323.4,1.20036756]
[1673337674280,2.89411903,1323.5,1323.4,1.20036756]
[1673337674451,13.00096389,1323.5,1323.4,1.20036756]
[1673337674664,20.62268389,1323.5,1323.4,1.20036756]
[1673337676303,13.06696389,1323.5,1323.4,1.20036756]
[1673337676449,20.62268389,1323.5,1323.4,1.20036756]
[1673337676658,28.17840389,1323.5,1323.4,1.20036756]
[1673337677388,30.44110104,1323.5,1323.4,1.20036756]
[1673337677602,27.82397618,1323.5,1323.4,1.20036756]
[1673337678475,20.26825618,1323.5,1323.4,1.20036756]
[1673337679247,18.00555903,1323.5,1323.4,1.20036756]
[1673337679397,25.56127903,1323.5,1323.4,1.20036756]
[1673337679751,18.00555903,1323.5,1323.4,1.20036756]
[1673337680915,25.56127903,1323.5,1323.4,1.20036756]
[1673337681279,18.00555903,1323.5,1323.4,1.20036756]
[1673337681489,25.56127903,1323.5,1323.4,1.20036756]
[1673337682593,28.74378818,1323.5,1323.4,1.20036756]
[1673337683667,29.30620066,1323.5,1323.4,1.20036756]
[1673337684352,18.35994915,1323.5,1323.4,1.20036756]
[1673337684596,25.91566915,1323.5,1323.4,1.20036756]
[1673337684810,29.30620066,1323.5,1323.4,1.20036756]
[1673337685187,25.91566915,1323.5,1323.4,1.20036756]
[1673337686276,29.30620066,1323.5,1323.4,1.20036756]
[1673337686491,36.91539708,1323.5,1323.4,1.20036756]
[1673337686707,37.48229708,1323.5,1323.4,1.20036756]
[1673337686969,33.6707613,1323.5,1323.4,1.20036756]
[1673337690122,26.1150413,1323.5,1323.4,1.20036756]
[1673337690490,30.28022979,1323.5,1323.4,1.20036756]
[1673337690857,26.1150413,1323.5,1323.4,1.20036756]